Cogmind - Beta 13 --- EXPLORER MODE // 2024.04.10 @ 10:32:55 Player: EtherNova Result: Self-destructed Performance ------------- Evolutions (1) 500 Regions Visited (2) 400 Robots Destroyed (7) 35 Value Destroyed (210) 210 Prototype IDs (0) 0 Alien Tech Used (0) 0 Bonus (200) 200 TOTAL SCORE: 1345 Bonus ------- Pacifist 200 Cogmind --------- Core Integrity 330/400 Matter 400/400 Energy 125/125 System Corruption 0% Temperature Cool (0) Movement Flying (194) Ox2 Location -9/Materials Parts ------- > --- POWER (1) -------- Light Ion Engine > --- PROPULSION (4) --- Flight Unit VTOL Module > --- UTILITY (3) ------ Medium Storage Unit Medium Matter Pod Targeting Computer > --- WEAPON (2) ------- Light Assault Rifle Light Assault Rifle > --- INVENTORY (10) --- Light Armor Plating Peak State ------------ > --- POWER ------------ Light Ion Engine > --- PROPULSION ------- Flight Unit Flight Unit Flight Unit VTOL Module > --- UTILITY ---------- Medium Storage Unit Medium Matter Pod Targeting Computer > --- WEAPON ----------- Light Assault Rifle Light Assault Rifle > --- INVENTORY -------- Light Armor Plating [Rating: 11] Favorites ----------- Power Light Ion Engine Engine Light Ion Engine Propulsion Aluminum Leg Leg Aluminum Leg Flight Unit Flight Unit Utility Medium Storage Unit Storage Medium Storage Unit Processor Targeting Computer Protection Light Armor Plating Weapon Light Assault Rifle Ballistic Gun Light Assault Rifle Build | -11 -10 -9 ------- Run | Yrd Mat Mat Slots Evolved 3 | . 1 2 Power . | . . . Propulsion 2 | . 1 1 Utility 1 | . . 1 Weapon . | . . . Parts Attached 19 | 8 . 11 Power 2 | 1 . 1 Engine 2 | 1 . 1 Core . | . . . Reactor . | . . . Propulsion 9 | 2 . 7 Treads . | . . . Leg 5 | 2 . 3 Wheel . | . . . Hover . | . . . Flight 4 | . . 4 Utility 4 | 3 . 1 Device . | . . . Storage 2 | 1 . 1 Processor 1 | 1 . . Hackware . | . . . Protection 1 | 1 . . Artifact . | . . . Weapon 4 | 2 . 2 Energy Gun . | . . . Energy Cannon . | . . . Ballistic Gun 4 | 2 . 2 Ballistic Cannon . | . . . Launcher . | . . . Special Weapon . | . . . Impact Weapon . | . . . Slashing Weapon . | . . . Piercing Weapon . | . . . Special Melee Weapon . | . . . Unidentified Prototypes . | . . . Parts Lost 2 | . . 2 Power . | . . . Propulsion 2 | . . 2 Utility . | . . . Weapon . | . . . Highest Loss Streak 1 | . . 1 To Critical Strikes . | . . . Average Slot Usage (%) 83 | . 87 80 Engine 10 | . 12 9 Leg 16 | . 25 9 Flight 7 | . . 14 Storage 15 | . 12 18 Processor 10 | . 12 10 Ballistic Gun 21 | . 25 18 Naked Turns . | . . . Heaviest Build 18 | 18 15 17 Greatest Support 30 | 20 20 30 Greatest Overweight (x) 3 | . . 3 Average Overweight (x) . | . . . Largest Inventory Capacity 10 | 10 10 10 Average Capacity 9 | 9 10 10 Most Carried 7 | 4 2 7 Average Carried 1 | . 1 1 Final Capacity 10 | 10 10 10 Final Carried 2 | 1 2 1 Class Distribution -------------------- 100% | Hacker-Mutant Dominant Class ---------------- Hacker-Mutant | -10/Materials Hacker-Mutant | -9/Materials Resources | -11 -10 -9 ----------- Run | Yrd Mat Mat Matter Collected 538 | 259 21 258 Remotely . | . . . Salvage Created 263 | . . 263 Parts 20 | . . 20 Haulers Intercepted . | . . . Recyclers Shooed . | . . . Parts Field Recycled . | . . . Retrieved Matter . | . . . Parts Self-Destructed . | . . . Prevented . | . . . Kills | -11 -10 -9 ------- Run | Yrd Mat Mat Combat Hostiles Destroyed 7 | . . 7 Guns 7 | . . 7 Classes Destroyed 2 | . . 2 Swarmer 3 | . . 3 Sentry 4 | . . 4 Best Kill Streak 3 | . . 3 Combat Bots Only 3 | . . 3 Max Kills in Single Turn 1 | . . 1 Gunslinging . | . . . Exploded . | . . . Melee . | . . . Uniques/NPCs Destroyed . | . . . Combat | -11 -10 -9 -------- Run | Yrd Mat Mat Hostile Shots Fired 59 | . . 59 Missed 17 | . . 17 Damage Taken 306 | . . 306 Core 70 | . . 70 Absorbed by Shields . | . . . Ignored by Resistances 201 | . . 201 Core Remaining (%) 100 | 100 100 . Volleys Fired 31 | . . 31 Largest 2 | . . 2 Hottest 40 | . . 40 Shots Fired 62 | . . 62 Gun 62 | . . 62 Cannon . | . . . Launcher . | . . . Special . | . . . Kinetic 62 | . . 62 Thermal . | . . . Explosive . | . . . Electromagnetic . | . . . Robot Hit Streak 36 | . . 36 Robot Miss Streak 2 | . . 2 Penetration Max . | . . . Secondary Targets . | . . . Shots Hit Robots 50 | . . 50 Core Hits 18 | . . 18 Critical Kills . | . . . Critical Parts Destroyed . | . . . Critical Strikes 1 | . . 1 Destroy 1 | . . 1 Melee Attacks . | . . . Impact . | . . . Slashing . | . . . Piercing . | . . . Sneak Attacks . | . . . Combat Hostiles . | . . . Follow-up Attacks . | . . . Damage Inflicted 397 | . . 397 Guns 395 | . . 395 Cannons . | . . . Explosions . | . . . Melee . | . . . Ramming 2 | . . 2 Kinetic 395 | . . 395 Thermal . | . . . Explosive . | . . . Electromagnetic . | . . . Impact . | . . . Slashing . | . . . Piercing . | . . . Highest Corruption . | . . . Average Corruption . | . . . Corruption Purged . | . . . Corruption Blocked . | . . . Overload Shots . | . . . Overflow Damage . | . . . Projectiles . | . . . Explosions . | . . . Melee . | . . . Knockbacks . | . . . Impact . | . . . Kinetic . | . . . Secondary . | . . . Self-Inflicted Damage . | . . . Shots . | . . . Rammed . | . . . Targets Rammed 1 | . . 1 Kicked 1 | . . 1 Crushed . | . . . Highest Temperature 22 | . . 22 Average Temperature 8 | . . 8 Received Heat Transfer 117 | . . 117 Siege Activations . | . . . Robots Corrupted . | . . . Combat Hostiles . | . . . Parts Fried . | . . . Impact Corruptions . | . . . Robots Melted . | . . . Combat Hostiles . | . . . Parts Melted . | . . . Heat Transferred . | . . . Parts Sabotaged . | . . . Parts Stolen . | . . . Parts Stripped . | . . . Power Chain Reactions . | . . . Alert | -11 -10 -9 ------- Run | Yrd Mat Mat Peak Influence 219 | . 18 219 Initial 4 | . . 4 Average 48 | . 7 95 Maximum Alert Level 1 | . . 1 Low Security (%) 92 | 100 100 84 Level 1 7 | . . 15 Level 2 . | . . . Level 3 . | . . . Level 4 . | . . . Level 5 . | . . . High Security . | . . . Max Security . | . . . Squads Dispatched . | . . . Investigation . | . . . Extermination . | . . . Reinforcement . | . . . Assault . | . . . Garrison . | . . . Intercept . | . . . Searches Triggered . | . . . Construction Impeded . | . . . Haulers Reinforced . | . . . Active Scanning Responses . | . . . Cargo Convoy Interrupts . | . . . Stealth | -11 -10 -9 --------- Run | Yrd Mat Mat Distress Signals 1 | . . 1 Communications Jammed . | . . . Distress Signals . | . . . Times Spotted 15 | . 1 14 Peak Tracking Total 3 | . 2 3 Tactical Retreats 1 | . . 1 Traps | -11 -10 -9 ------- Run | Yrd Mat Mat Traps Triggered 5 | . . 5 Indirectly . | . . . Trap Hack Attempts . | . . . Triggered . | . . . Disarmed . | . . . Reprogrammed . | . . . Reused . | . . . Traps Extracted . | . . . Installed . | . . . Triggered . | . . . Machines | -11 -10 -9 ---------- Run | Yrd Mat Mat Machines Disabled . | . . . Max in Single Turn . | . . . Machines Repaired . | . . . Machines Dismantled . | . . . Machines Sabotaged . | . . . Overloaded Fab Kills . | . . . Hacking | -11 -10 -9 --------- Run | Yrd Mat Mat Machines Accessed 2 | . 2 . Terminals 2 | . 2 . Fabricators . | . . . Repair Stations . | . . . Recycling Units . | . . . Scanalyzers . | . . . Garrison Access . | . . . Total Hacks 3 | . 3 . Successful 3 | . 3 . Failed . | . . . Catastrophic . | . . . Database Lockouts . | . . . Manual . | . . . Terminals 3 | . 3 . Fabricators . | . . . Repair Stations . | . . . Recycling Units . | . . . Scanalyzers . | . . . Garrison Access . | . . . Terminal Hacks 3 | . 3 . Security Status 1 | . 1 . Zone Layout 2 | . 2 . Fabricator Hacks . | . . . Repair Station Hacks . | . . . Recycling Unit Hacks . | . . . Scanalyzer . | . . . Garrison Access Hacks . | . . . Unauthorized Hacks . | . . . Terminals . | . . . Fabricators . | . . . Repair Stations . | . . . Recycling Units . | . . . Scanalyzers . | . . . Garrison Access . | . . . Data Cores Recovered . | . . . Used . | . . . Hacking Detections 1 | . 1 . Full Trace Events . | . . . Feedback Events . | . . . Feedback Blocked . | . . . Robot Schematics Acquired . | . . . Robots Built . | . . . Authchips . | . . . Time . | . . . Total Robot Build Rating . | . . . Part Schematics Acquired . | . . . Parts Built . | . . . Authchips . | . . . Time . | . . . Total Part Build Rating . | . . . Parts Repaired . | . . . Time . | . . . Parts Recycled . | . . . Recycled Matter . | . . . Retrieved Matter . | . . . Retrieved Components . | . . . Parts Scanalyzed . | . . . Part Schematics Acquired . | . . . Parts Damaged . | . . . Bothacking | -11 -10 -9 ------------ Run | Yrd Mat Mat Used RIF Installer . | . . . Robots Hacked . | . . . Non-combat . | . . . Combat . | . . . Robot Hacks Applied . | . . . Relay Couplers Released . | . . . Fabnet Peak Effective % . | . . . Robots Rewired . | . . . Allies Hacked . | . . . Hacks Repelled . | . . . Allies | -11 -10 -9 -------- Run | Yrd Mat Mat Total Allies . | . . . Largest Group . | . . . Highest-Rated Group . | . . . Highest-Rated Ally . | . . . Total Orders . | . . . Ally Attacks . | . . . Total Damage . | . . . Kills . | . . . Allies Corrupted . | . . . Allies Melted . | . . . Intel | -11 -10 -9 ------- Run | Yrd Mat Mat Robot Analysis Total . | . . . Derelict Logs Recovered . | . . . Drone Launches . | . . . Drone Recoveries . | . . . Exploration | -11 -10 -9 ------------- Run | Yrd Mat Mat Turns Passed 819 | 97 333 389 Spaces Moved 571 | 77 277 217 Core 25 | 16 . 9 Treads . | . . . Legs 449 | 61 277 111 Wheels . | . . . Hover . | . . . Flight 97 | . . 97 Fastest Speed 50 | 50 120 109 Average Speed 122 | 105 120 130 Slowest Speed 200 | 120 120 200 Overloaded Moves . | . . . Propulsion Burnouts . | . . . Robots Hopped . | . . . Cave-ins Triggered . | . . . Exploration Rate (%) 25 | 5 41 29 Regions Visited 2 Branch Regions . Pre-discovered Areas . | . . . Known Exits Taken 2 | 1 1 . Unknown Exits Taken . | . . . Scrap Searched . | . . . Spaces Dug . | . . . Terrain Destroyed . | . . . Melee . | . . . Projectile . | . . . AOE . | . . . Terrain Rammed . | . . . Walls Destroyed . | . . . Machines Disabled . | . . . Actions | -11 -10 -9 --------- Run | Yrd Mat Mat Total 642 | 92 277 273 Wait . | . . . Move 569 | 76 276 217 Hop . | . . . Pick Up 19 | 8 1 10 Fast Attach . | . . . Attach 18 | 7 . 11 Detach . | . . . Swap 1 | 1 . . Drop 3 | . . 3 Fire 31 | . . 31 Melee . | . . . Ram . | . . . Kick 1 | . . 1 Crush . | . . . Escape Stasis . | . . . Rewire . | . . . Trap . | . . . Miscellaneous . | . . . Route ------- -11/Scrapyard -10/Materials (discovered 2 exits: *Mat / *Min) -9/Materials History --------- Turn | Location | Event 5 | -11/Scrapyard | Identified exit to Materials 5 | -11/Scrapyard | Discovered exit to Materials (range 15) 98 | -11/Scrapyard | Entered Materials 98 | -10/Materials | Evolved 1 slot: Propulsion x1 258 | -10/Materials | Identified exit to Mines 258 | -10/Materials | Discovered exit to Mines (range 13) 308 | -10/Materials | Build established: Hacker-Mutant 419 | -10/Materials | Identified exit to Materials 419 | -10/Materials | Discovered exit to Materials (range 9) 431 | -10/Materials | Entered another Materials area 431 | -9/Materials | Evolved 2 slots: Propulsion x1, Utility x1 820 | -9/Materials | Self-destructed Last Messages --------------- R-06 Scavenger collects Lgt. Treads. Y-45 Defender destroyed. Acquired 2 matter. R-06 Scavenger collects Hvy. Assault Rifle. U-05 Engineer lays Concrete. R-06 Scavenger collects Heat Sink. U-05 Engineer lays Concrete. Flight Unit destroyed. Y-45 Defender destroyed. K-01 Serf collects debris. R-06 Scavenger collects Imp. Ion Engine. K-01 Serf collects debris. R-06 Scavenger collects Heat Sink. Acquired 9 matter. K-01 Serf collects debris. R-06 Scavenger collects Beam Rifle. R-06 Scavenger collects Lgt. Armor Plating. T-07 Excavator is excavating. C-30 ARC bursts open, deploying its payload. S-10 Pest unfolds itself. Map ----- +----------------------------------------------------+ | ?????????????????????????????????????????????????? | | ?????????????????????????????????????????????????? | | ?????????????????????????????????????????????????? | | ?????????????????????????????????????????????????? | | ?????????????????????????????????????????????????? | | ?????????????????????????????????????????????????? | | ?????????????????????????????????????????????????? | | ?????????????????????????????????????????????????? | | ?????????????????????????????????????????????????? | | ?????????????????????????????????????????????????? | | ?????????????????????????????????????????????????? | | ?????????????????????????????????????????????????? | | ?????????????????????????????????????????????????? | | ?????????????????????????????????????????????????? | | ?????????????????????????????????????????????????? | | ?????????????????????????????????????????????????? | | ?????????????????????? ??????????????????????????? | | ?????????????????????# ??????????????????????????? | | ?????????????????????# ??????????????????????????? | | ?????????????????#???# ??????????????????????????? | | ????????????????? ??# ??########????????????????? | | ?????????????????? ?# ??# ! #????????????????? | | ??????????????????? ?# ??# #????????????????? | | ??????????????????? #w### #????????????????? | | ???????????# ] #s # """ #????????????????? | | ???????????# t /s @ """ #????????????????? | | ???????????# # # """ #????????????????? | | ?????????????????????# # #????????????????? | | ????????? ###+#####+## # """ #????????????????? | | ???????? #= """ #????????????????? | | ???????? # """ #????????????????? | | ???????? m + #????????????????? | | ???????????########+## # #????????????????? | | ????????????????????## ########????????????????? | | ????????????????????# ############???????????? | | ????????????????????# ?????????? | | ????????????????????# % ?????????? | | ????????????????????# ?????????? | | ????????????????????# ##### #####??????????? | | ????????????????????### ###???# #??????????????? | | ??????????????????????# #?????# #?????????????## | | ???????????????????####+####### #?????????????# | | ???????????????????# ## ##???#######??# | | ???????????????????# # ##### #??#= | | ???????????????????# # #### | | ???????????????????# + / | | ???????????????????# # ![ % #### | | ???????????????????# # #####% #??# | | ???????????????????# #######???#"#####??# | | ???????????????????# #?????????#[#??????# | +----------------------------------------------------+ Best States ------------- Heat Dissipation 28 Energy Generation 10 Energy Capacity 125 Matter Stores 400 Matter Capacity 400 Sight Range 16 Terrain Scan Density 10 Armor Coverage 150 Resistance: KI 35 Resistance: TH 35 Resistance: EX 35 Resistance: EM 35 Resistance: I 35 Resistance: S 35 Resistance: P 35 Evasion (%) 55 Targeting Accuracy 5 Offensive Hacking 20 Item Schematics ----------------- None Robot Schematics ------------------ None Fabricated ------------ Nothing Alien Tech Used ----------------- None Achievements -------------- None Challenges ------------ None Game ------ Seed HackingArmoredReplicator Manual? 0 Play Time 00:09:25 Cumulative 3.4 hours Start 2024.04.09 @ 23:09:23 End 2024.04.10 @ 10:32:55 Sessions 2 Manual Loads 0 Difficulty Explorer Special Mode None Game No. 7 Rogue 0 Adventurer 0 Explorer 7 Win Type - Total 0 Types 0/0/0/0/0/0/0/0/0 Lore% 2 Gallery% 15 Achievement% 12 Wizard Run 0 Options --------- Layout 1 ASCII 0 Keyboard 0 Movement Arrows Keybinds 0 Fullscreen 2 Font 24/Smallcaps Map View 25x20 Zoom Use 97% Tactical HUD 0 Map Filters NONE Filters NONE Steam 1 RUN: 4655b836-02d5-40a6-a7fd-ef5ebb2cbd8f